[Event "Championnat d'Europe de Blitz"]
[Date "2024.12.09"]
[White "Kalezic, Blazo"]
[Black "Grigoriants, Sergey"]
[WhiteElo "2382"]
[BlackElo "2542"]
[Round "12.23"]
[Result "0-1"]
[TimeControl "180+2"]

1. e4 {[%clk 00:03:03]} c5 {[%emt 00:00:02] [%clk 00:03:03]} 2. Nf3 {[%emt
00:00:01] [%clk 00:03:03]} e6 {[%emt 00:00:04] [%clk 00:03:02]} 3. d4 {[%emt
00:00:06] [%clk 00:02:59]} cxd4 {[%emt 00:00:01] [%clk 00:03:02]} 4. Nxd4 {[%clk
00:03:00]} Nc6 {[%emt 00:00:12] [%clk 00:02:53]} 5. Nc3 {[%emt 00:00:05] [%clk
00:02:56]} d6 {[%emt 00:00:03] [%clk 00:02:53]} 6. g4 {[%emt 00:00:07] [%clk
00:02:51]} a6 {[%emt 00:00:01] [%clk 00:02:53]} 7. Bg2 {[%emt 00:00:08] [%clk
00:02:45]} Nge7 {[%emt 00:00:08] [%clk 00:02:47]} 8. g5 {[%emt 00:00:20] [%clk
00:02:27]} b5 {[%emt 00:00:15] [%clk 00:02:35]} 9. Nb3 {[%emt 00:00:18] [%clk
00:02:10]} Bb7 {[%emt 00:00:07] [%clk 00:02:31]} 10. h4 {[%emt 00:00:09] [%clk
00:02:03]} h6 {[%emt 00:00:33] [%clk 00:02:00]} 11. Rg1 {[%emt 00:00:14] [%clk
00:01:51]} hxg5 {[%emt 00:00:03] [%clk 00:01:59]} 12. hxg5 {[%emt 00:00:05]
[%clk 00:01:48]} g6 {[%emt 00:00:18] [%clk 00:01:43]} 13. a3 {[%emt 00:00:05]
[%clk 00:01:45]} Bg7 {[%emt 00:00:01] [%clk 00:01:43]} 14. Qe2 {[%emt 00:00:15]
[%clk 00:01:32]} Rc8 {[%emt 00:00:13] [%clk 00:01:33]} 15. f4 {[%emt 00:00:23]
[%clk 00:01:11]} Na5 {[%emt 00:00:24] [%clk 00:01:10]} 16. e5 {[%emt 00:00:24]
[%clk 00:00:50]} Bxg2 {[%emt 00:00:09] [%clk 00:01:03]} 17. Rxg2 {[%emt
00:00:21] [%clk 00:00:30]} Nxb3 {[%emt 00:00:07] [%clk 00:00:58]} 18. cxb3
{[%emt 00:00:03] [%clk 00:00:30]} dxe5 {[%emt 00:00:01] [%clk 00:00:59]} 19.
fxe5 {[%emt 00:00:11] [%clk 00:00:21]} Qd4 {[%emt 00:00:18] [%clk 00:00:43]} 20.
Qe3 {[%emt 00:00:11] [%clk 00:00:11]} Rh1+ {[%emt 00:00:07] [%clk 00:00:39]} 21.
Ke2 {[%emt 00:00:02] [%clk 00:00:11]} Nf5 {[%emt 00:00:02] [%clk 00:00:38]} 22.
Qe4 {[%emt 00:00:07] [%clk 00:00:06]} Qxe4+ {[%emt 00:00:08] [%clk 00:00:33]}
23. Nxe4 {[%emt 00:00:01] [%clk 00:00:07]} Rcxc1 {[%emt 00:00:03] [%clk
00:00:32]} 24. Rxc1 {[%emt 00:00:01] [%clk 00:00:07]} Rxc1 {[%emt 00:00:02]
[%clk 00:00:32]} 25. Kd3 {[%emt 00:00:02] [%clk 00:00:07]} Bxe5 {[%emt 00:00:03]
[%clk 00:00:32]} 26. b4 {[%emt 00:00:03] [%clk 00:00:06]} Rd1+ {[%emt 00:00:09]
[%clk 00:00:24]} 27. Ke2 {[%emt 00:00:03] [%clk 00:00:05]} Rb1 {[%emt 00:00:03]
[%clk 00:00:23]} 28. Kd3 {[%emt 00:00:01] [%clk 00:00:06]} Rxb2 {[%emt 00:00:01]
[%clk 00:00:24]} 29. Rg1 {[%emt 00:00:01] [%clk 00:00:07]} Rb3+ {[%emt 00:00:05]
[%clk 00:00:21]} 30. Kc2 {[%emt 00:00:02] [%clk 00:00:06]} Nd4+ {[%emt 00:00:02]
[%clk 00:00:22]} 31. Kd2 {[%emt 00:00:02] [%clk 00:00:06]} Bf4+ {[%emt 00:00:01]
[%clk 00:00:23]} 32. Ke1 {[%emt 00:00:01] [%clk 00:00:08]} Nf3+ {[%emt 00:00:02]
[%clk 00:00:22]} 0-1

[Site "Europe Echecs"]

[Event "Championnat d'Europe de Blitz"]
[Date "2024.12.09"]
[White "Hamitevici, Vladimir"]
[Black "Kadric, Denis"]
[WhiteElo "2423"]
[BlackElo "2544"]
[Round "12.24"]
[Result "0-1"]
[TimeControl "180+2"]

1. a3 {[%emt 00:16:02] [%clk 00:03:04]} d6 {[%clk 00:03:03]} 2. d4 {[%emt
00:00:03] [%clk 00:03:03]} Nf6 {[%emt 00:00:01] [%clk 00:03:04]} 3. g3 {[%clk
00:03:03]} Nbd7 {[%emt 00:00:03] [%clk 00:03:04]} 4. Bg2 {[%emt 00:00:02] [%clk
00:03:03]} e5 {[%clk 00:03:05]} 5. Nc3 {[%emt 00:00:11] [%clk 00:02:54]} c6
{[%emt 00:00:03] [%clk 00:03:04]} 6. e4 {[%emt 00:00:09] [%clk 00:02:46]} Be7
{[%emt 00:00:01] [%clk 00:03:05]} 7. Nge2 {[%emt 00:00:02] [%clk 00:02:47]} O-O
{[%emt 00:00:01] [%clk 00:03:06]} 8. h3 {[%emt 00:00:06] [%clk 00:02:43]} h5
{[%emt 00:00:04] [%clk 00:03:04]} 9. Be3 {[%emt 00:00:04] [%clk 00:02:41]} b5
{[%emt 00:00:01] [%clk 00:03:05]} 10. f4 {[%emt 00:00:08] [%clk 00:02:34]} Bb7
{[%emt 00:00:04] [%clk 00:03:04]} 11. Bf3 {[%emt 00:00:21] [%clk 00:02:14]} a5
{[%emt 00:00:09] [%clk 00:02:58]} 12. dxe5 {[%emt 00:01:01] [%clk 00:01:15]}
dxe5 {[%emt 00:00:01] [%clk 00:02:59]} 13. f5 {[%emt 00:00:01] [%clk 00:01:15]}
b4 {[%emt 00:00:09] [%clk 00:02:53]} 14. Na4 {[%emt 00:00:02] [%clk 00:01:14]}
c5 {[%emt 00:00:01] [%clk 00:02:54]} 15. Qd3 {[%emt 00:00:09] [%clk 00:01:07]}
Qc7 {[%emt 00:00:06] [%clk 00:02:50]} 16. b3 {[%emt 00:00:05] [%clk 00:01:04]}
Rfd8 {[%emt 00:00:16] [%clk 00:02:37]} 17. g4 {[%emt 00:00:39] [%clk 00:00:26]}
Nb6 {[%emt 00:00:10] [%clk 00:02:29]} 18. Nxb6 {[%emt 00:00:05] [%clk 00:00:24]}
Qxb6 {[%emt 00:00:06] [%clk 00:02:25]} 19. Qc4 {[%emt 00:00:15] [%clk 00:00:10]}
Ba6 {[%emt 00:00:01] [%clk 00:02:26]} 20. g5 {[%emt 00:00:06] [%clk 00:00:06]}
Bxc4 {[%emt 00:00:07] [%clk 00:02:22]} 21. bxc4 {[%emt 00:00:01] [%clk
00:00:06]} Ne8 {[%emt 00:00:20] [%clk 00:02:04]} 22. f6 {[%clk 00:00:08]} gxf6
{[%emt 00:00:19] [%clk 00:01:47]} 23. Ng3 {[%clk 00:00:09]} Ng7 {[%emt 00:00:04]
[%clk 00:01:44]} 24. gxf6 {[%emt 00:00:05] [%clk 00:00:07]} Bxf6 {[%emt
00:00:02] [%clk 00:01:44]} 25. h4 {[%clk 00:00:08]} bxa3 {[%emt 00:00:07] [%clk
00:01:39]} 26. Ke2 {[%clk 00:00:09]} Qb2 {[%emt 00:00:08] [%clk 00:01:33]} 27.
Rhc1 {[%emt 00:00:02] [%clk 00:00:09]} a2 {[%emt 00:00:04] [%clk 00:01:32]} 28.
Bxc5 {[%emt 00:00:01] [%clk 00:00:09]} Rac8 {[%emt 00:00:14] [%clk 00:01:20]}
0-1

[Site "Europe Echecs"]

[Event "Championnat d'Europe de Blitz"]
[Date "2024.12.09"]
[White "Gatineau, Yovann"]
[Black "Lagarde, Maxime"]
[WhiteElo "2363"]
[BlackElo "2600"]
[Round "12.25"]
[Result "0-1"]
[TimeControl "180+2"]

1. d4 {[%clk 00:03:03]} Nf6 {[%emt 00:00:03] [%clk 00:03:02]} 2. c4 {[%clk
00:03:05]} g6 {[%clk 00:03:03]} 3. Nc3 {[%emt 00:00:01] [%clk 00:03:06]} Bg7
{[%clk 00:03:04]} 4. e4 {[%clk 00:03:07]} d6 {[%clk 00:03:05]} 5. Nf3 {[%emt
00:00:01] [%clk 00:03:08]} O-O {[%emt 00:00:01] [%clk 00:03:06]} 6. h3 {[%emt
00:00:01] [%clk 00:03:09]} e5 {[%emt 00:00:05] [%clk 00:03:03]} 7. d5 {[%clk
00:03:10]} Nbd7 {[%emt 00:00:04] [%clk 00:03:01]} 8. Be3 {[%emt 00:00:03] [%clk
00:03:09]} Nc5 {[%emt 00:00:06]} 9. Nd2 {[%emt 00:00:01] [%clk 00:03:07]} a5
{[%emt 00:00:01] [%clk 00:03:01]} 10. g4 {[%emt 00:00:02] [%clk 00:03:07]} c6
{[%emt 00:00:05] [%clk 00:02:58]} 11. Be2 {[%emt 00:00:07] [%clk 00:03:03]} Nfd7
{[%emt 00:00:09] [%clk 00:02:50]} 12. a3 {[%emt 00:00:10] [%clk 00:02:55]} a4
{[%emt 00:00:02] [%clk 00:02:50]} 13. h4 {[%emt 00:00:03] [%clk 00:02:54]} Nb6
{[%emt 00:00:02] [%clk 00:02:50]} 14. h5 {[%emt 00:00:07] [%clk 00:02:49]} Bd7
{[%emt 00:00:09] [%clk 00:02:44]} 15. Rc1 {[%emt 00:00:16] [%clk 00:02:34]} cxd5
{[%emt 00:00:33] [%clk 00:02:14]} 16. cxd5 {[%emt 00:00:05] [%clk 00:02:31]} Rc8
{[%clk 00:02:15]} 17. hxg6 {[%emt 00:00:25] [%clk 00:02:08]} fxg6 {[%emt
00:00:03] [%clk 00:02:13]} 18. Nf1 {[%emt 00:00:23] [%clk 00:01:47]} Nb3 {[%emt
00:00:10] [%clk 00:02:05]} 19. Rb1 {[%emt 00:00:03] [%clk 00:01:46]} Nc4 {[%emt
00:00:17] [%clk 00:01:50]} 20. Bxc4 {[%emt 00:00:13] [%clk 00:01:35]} Rxc4
{[%emt 00:00:01] [%clk 00:01:51]} 21. Nd2 {[%emt 00:00:02] [%clk 00:01:36]} Nxd2
{[%emt 00:00:08] [%clk 00:01:45]} 22. Kxd2 {[%clk 00:01:36]} Rd4+ {[%emt
00:00:05] [%clk 00:01:42]} 23. Bxd4 {[%emt 00:00:04] [%clk 00:01:33]} exd4
{[%emt 00:00:02] [%clk 00:01:43]} 24. Ne2 {[%emt 00:00:10] [%clk 00:01:25]} Qa5+
{[%emt 00:00:10] [%clk 00:01:35]} 25. Kc2 {[%emt 00:00:31] [%clk 00:00:56]} Rc8+
{[%emt 00:00:03] [%clk 00:01:34]} 26. Kd3 {[%emt 00:00:01] [%clk 00:00:57]} Bb5#
{[%emt 00:00:02]} 0-1

[Site "Europe Echecs"]

[Event "Championnat d'Europe de Blitz"]
[Date "2024.12.09"]
[White "Nevednichy, Vladislav"]
[Black "Sargissian, Gabriel"]
[WhiteElo "2451"]
[BlackElo "2628"]
[Round "12.26"]
[Result "0-1"]
[TimeControl "180+2"]

1. e4 {[%emt 00:00:03] [%clk 00:03:03]} e5 {[%clk 00:03:03]} 2. Nf3 {[%emt
00:00:02] [%clk 00:03:03]} Nc6 {[%emt 00:00:01] [%clk 00:03:04]} 3. Bc4 {[%emt
00:00:01] [%clk 00:03:04]} Nf6 {[%emt 00:00:01] [%clk 00:03:05]} 4. d3 {[%emt
00:00:01] [%clk 00:03:05]} Be7 {[%emt 00:00:01] [%clk 00:03:05]} 5. O-O {[%emt
00:00:03] [%clk 00:03:04]} O-O {[%emt 00:00:02] [%clk 00:03:05]} 6. a4 {[%emt
00:00:03] [%clk 00:03:03]} d6 {[%emt 00:00:07] [%clk 00:03:00]} 7. a5 {[%emt
00:00:04] [%clk 00:03:02]} a6 {[%emt 00:00:01] [%clk 00:03:00]} 8. h3 {[%emt
00:00:05] [%clk 00:02:58]} Be6 {[%emt 00:00:04] [%clk 00:02:59]} 9. Nbd2 {[%emt
00:00:24] [%clk 00:02:36]} h6 {[%emt 00:00:02] [%clk 00:02:58]} 10. Bxe6 {[%emt
00:00:11] [%clk 00:02:28]} fxe6 {[%clk 00:02:59]} 11. c3 {[%emt 00:00:01] [%clk
00:02:30]} Qd7 {[%emt 00:00:05] [%clk 00:02:56]} 12. Re1 {[%emt 00:00:12] [%clk
00:02:19]} Nh7 {[%emt 00:00:41] [%clk 00:02:18]} 13. Nf1 {[%emt 00:00:04] [%clk
00:02:16]} Rf7 {[%emt 00:00:09] [%clk 00:02:12]} 14. g3 {[%emt 00:00:09] [%clk
00:02:08]} Raf8 {[%emt 00:00:09] [%clk 00:02:06]} 15. N1h2 {[%emt 00:00:01]
[%clk 00:02:09]} d5 {[%emt 00:00:26] [%clk 00:01:41]} 16. Kg2 {[%emt 00:00:16]
[%clk 00:01:55]} Bg5 {[%emt 00:00:27] [%clk 00:01:16]} 17. Rf1 {[%emt 00:00:09]
[%clk 00:01:48]} Bxc1 {[%emt 00:00:07] [%clk 00:01:11]} 18. Rxc1 {[%clk
00:01:49]} Qd6 {[%emt 00:00:02] [%clk 00:01:12]} 19. Ra1 {[%emt 00:00:13] [%clk
00:01:37]} Nf6 {[%emt 00:00:15] [%clk 00:00:59]} 20. Qe2 {[%emt 00:00:03] [%clk
00:01:36]} Nd7 {[%emt 00:00:04] [%clk 00:00:58]} 21. Nd2 {[%emt 00:00:16] [%clk
00:01:21]} Nc5 {[%emt 00:00:12] [%clk 00:00:48]} 22. b4 {[%emt 00:00:05] [%clk
00:01:19]} Nd7 {[%emt 00:00:01] [%clk 00:00:49]} 23. Rab1 {[%emt 00:00:05] [%clk
00:01:16]} d4 {[%emt 00:00:01] [%clk 00:00:49]} 24. Nc4 {[%emt 00:00:12] [%clk
00:01:07]} Qe7 {[%clk 00:00:50]} 25. b5 {[%emt 00:00:01] [%clk 00:01:07]} axb5
{[%emt 00:00:05] [%clk 00:00:47]} 26. Rxb5 {[%emt 00:00:01] [%clk 00:01:08]}
dxc3 {[%emt 00:00:01] [%clk 00:00:48]} 27. Rxb7 {[%emt 00:00:02] [%clk
00:01:09]} Nc5 {[%emt 00:00:01] [%clk 00:00:48]} 28. Rbb1 {[%emt 00:00:18] [%clk
00:00:53]} Nd4 {[%emt 00:00:01] [%clk 00:00:49]} 29. Qe3 {[%emt 00:00:17] [%clk
00:00:39]} c2 {[%emt 00:00:02] [%clk 00:00:49]} 30. Rbc1 {[%emt 00:00:05] [%clk
00:00:36]} Ncb3 {[%emt 00:00:08] [%clk 00:00:43]} 31. Rce1 {[%emt 00:00:02]
[%clk 00:00:35]} Qc5 {[%emt 00:00:08] [%clk 00:00:37]} 32. Ng4 {[%emt 00:00:03]
[%clk 00:00:34]} Nf3 {[%emt 00:00:03] [%clk 00:00:37]} 33. Rc1 {[%emt 00:00:07]
[%clk 00:00:28]} Qxe3 {[%emt 00:00:06] [%clk 00:00:33]} 34. Ngxe3 {[%emt
00:00:10] [%clk 00:00:21]} Nxc1 {[%emt 00:00:04] [%clk 00:00:31]} 35. Rxc1
{[%clk 00:00:22]} Nd4 {[%emt 00:00:10] [%clk 00:00:22]} 36. Ng4 {[%emt 00:00:13]
[%clk 00:00:11]} h5 {[%emt 00:00:01] [%clk 00:00:23]} 37. Ncxe5 {[%emt 00:00:02]
[%clk 00:00:11]} hxg4 {[%emt 00:00:01] [%clk 00:00:24]} 38. Nxf7 {[%emt
00:00:01] [%clk 00:00:12]} Kxf7 {[%emt 00:00:03] [%clk 00:00:24]} 39. hxg4
{[%emt 00:00:01] [%clk 00:00:12]} Ra8 {[%emt 00:00:01] [%clk 00:00:25]} 40. f4
{[%emt 00:00:02] [%clk 00:00:12]} Rxa5 {[%emt 00:00:01] [%clk 00:00:26]} 41. Kf2
{[%clk 00:00:14]} c5 {[%emt 00:00:06] [%clk 00:00:23]} 42. Ke3 {[%clk 00:00:14]}
Ra8 {[%emt 00:00:04] [%clk 00:00:21]} 43. g5 {[%emt 00:00:05] [%clk 00:00:11]}
Rh8 {[%emt 00:00:06]} 44. Kd2 {[%clk 00:00:09]} Nb3+ {[%emt 00:00:02] [%clk
00:00:22]} 0-1

[Site "Europe Echecs"]

[Event "Championnat d'Europe de Blitz"]
[Date "2024.12.09"]
[White "Smeets, Jan"]
[Black "Bulmaga, Irina"]
[WhiteElo "2552"]
[BlackElo "2386"]
[Round "12.27"]
[Result "1-0"]
[TimeControl "180+2"]

1. e4 {[%emt 00:00:01] [%clk 00:03:03]} e5 {[%emt 00:00:03] [%clk 00:03:03]} 2.
Nf3 {[%clk 00:03:03]} Nc6 {[%clk 00:03:04]} 3. Bb5 {[%emt 00:00:02] [%clk
00:03:04]} Nf6 {[%emt 00:00:02] [%clk 00:03:04]} 4. O-O {[%emt 00:00:03] [%clk
00:03:03]} Nxe4 {[%emt 00:00:02] [%clk 00:03:04]} 5. Re1 {[%emt 00:00:04] [%clk
00:03:01]} Nd6 {[%emt 00:00:02] [%clk 00:03:04]} 6. a4 {[%emt 00:00:01] [%clk
00:03:03]} Be7 {[%emt 00:00:04] [%clk 00:03:02]} 7. Nc3 {[%emt 00:00:01] [%clk
00:03:04]} O-O {[%emt 00:00:04] [%clk 00:03:00]} 8. Nd5 {[%emt 00:01:15] [%clk
00:01:51]} e4 {[%emt 00:00:05] [%clk 00:02:57]} 9. Bxc6 {[%emt 00:00:28] [%clk
00:01:26]} dxc6 {[%emt 00:00:05] [%clk 00:02:54]} 10. Nxe7+ {[%emt 00:00:02]
[%clk 00:01:26]} Qxe7 {[%emt 00:00:01] [%clk 00:02:55]} 11. d3 {[%emt 00:00:01]
[%clk 00:01:27]} f5 {[%emt 00:00:38] [%clk 00:02:19]} 12. Bf4 {[%emt 00:00:20]
[%clk 00:01:09]} Bd7 {[%emt 00:00:12] [%clk 00:02:09]} 13. Nd2 {[%emt 00:00:21]
[%clk 00:00:49]} Rad8 {[%emt 00:00:39] [%clk 00:01:32]} 14. Qe2 {[%emt 00:00:05]
[%clk 00:00:46]} Qf6 {[%emt 00:00:12] [%clk 00:01:22]} 15. c3 {[%emt 00:00:12]
[%clk 00:00:37]} exd3 {[%emt 00:00:09] [%clk 00:01:15]} 16. Qxd3 {[%emt
00:00:01] [%clk 00:00:38]} Be6 {[%emt 00:00:06] [%clk 00:01:10]} 17. Qe3 {[%emt
00:00:05] [%clk 00:00:35]} Rde8 {[%emt 00:00:08] [%clk 00:01:04]} 18. Qxa7
{[%emt 00:00:01] [%clk 00:00:36]} Qg6 {[%emt 00:00:29] [%clk 00:00:37]} 19. f3
{[%emt 00:00:07] [%clk 00:00:31]} Bd5 {[%emt 00:00:12] [%clk 00:00:27]} 20. b3
{[%emt 00:00:10] [%clk 00:00:22]} Ra8 {[%emt 00:00:16] [%clk 00:00:12]} 21. Qf2
{[%emt 00:00:04] [%clk 00:00:20]} Rfe8 {[%emt 00:00:03] [%clk 00:00:12]} 22. c4
{[%emt 00:00:01] [%clk 00:00:21]} Bf7 {[%clk 00:00:13]} 23. h3 {[%emt 00:00:04]
[%clk 00:00:19]} b6 {[%clk 00:00:14]} 24. c5 {[%emt 00:00:02] [%clk 00:00:20]}
bxc5 {[%emt 00:00:06] [%clk 00:00:10]} 25. Qxc5 {[%emt 00:00:01] [%clk
00:00:21]} Bd5 {[%emt 00:00:01] [%clk 00:00:10]} 26. Kh2 {[%emt 00:00:06] [%clk
00:00:17]} Qf6 {[%emt 00:00:03] [%clk 00:00:09]} 27. a5 {[%emt 00:00:05] [%clk
00:00:14]} g5 {[%clk 00:00:10]} 28. Be3 {[%emt 00:00:03] [%clk 00:00:13]} Qe5+
{[%emt 00:00:03] [%clk 00:00:09]} 29. Kg1 {[%emt 00:00:01] [%clk 00:00:15]} Qg3
{[%emt 00:00:02] [%clk 00:00:09]} 30. Bf2 {[%emt 00:00:01] [%clk 00:00:15]} Qf4
{[%emt 00:00:02] [%clk 00:00:09]} 31. Qc2 {[%emt 00:00:05] [%clk 00:00:13]} Nb5
{[%emt 00:00:05] [%clk 00:00:06]} 32. Nc4 {[%emt 00:00:03] [%clk 00:00:11]} Nd4
{[%emt 00:00:03] [%clk 00:00:05]} 33. Qd3 {[%emt 00:00:01] [%clk 00:00:11]} Nxb3
{[%emt 00:00:05] [%clk 00:00:03]} 34. Qxb3 {[%clk 00:00:12]} Qxc4 {[%emt
00:00:01] [%clk 00:00:04]} 35. Qb2 {[%emt 00:00:01] [%clk 00:00:13]} Qb5 {[%emt
00:00:02] [%clk 00:00:04]} 36. Qf6 {[%emt 00:00:01] [%clk 00:00:13]} Rf8 {[%emt
00:00:01] [%clk 00:00:05]} 37. Qxg5+ {[%emt 00:00:01] [%clk 00:00:14]} Kf7
{[%clk 00:00:06]} 38. Re7# {[%emt 00:00:01] [%clk 00:00:15]} 1-0

[Site "Europe Echecs"]

[Event "Championnat d'Europe de Blitz"]
[Date "2024.12.09"]
[White "Ragger, Markus"]
[Black "Brunner, Nicolas"]
[WhiteElo "2577"]
[BlackElo "2413"]
[Round "12.28"]
[Result "1-0"]
[TimeControl "180+2"]

1. d4 {[%emt 00:17:09] [%clk 00:03:04]} d5 {[%emt 00:00:02] [%clk 00:03:03]} 2.
c4 {[%emt 00:00:02] [%clk 00:03:05]} e6 {[%clk 00:03:04]} 3. Nf3 {[%clk
00:03:06]} Nf6 {[%clk 00:03:05]} 4. g3 {[%clk 00:03:07]} dxc4 {[%clk 00:03:06]}
5. Bg2 {[%clk 00:03:09]} Bb4+ {[%emt 00:00:02] [%clk 00:03:07]} 6. Bd2 {[%clk
00:03:10]} a5 {[%clk 00:03:08]} 7. Qc2 {[%emt 00:00:04] [%clk 00:03:08]} Bxd2+
{[%emt 00:00:02] [%clk 00:03:08]} 8. Qxd2 {[%emt 00:00:03] [%clk 00:03:07]} c6
{[%emt 00:00:01] [%clk 00:03:09]} 9. a4 {[%emt 00:00:01] [%clk 00:03:08]} Ne4
{[%emt 00:00:01] [%clk 00:03:10]} 10. Qc1 {[%emt 00:00:03] [%clk 00:03:06]} Nd6
{[%emt 00:00:02] [%clk 00:03:10]} 11. O-O {[%emt 00:00:07] [%clk 00:03:01]} b5
{[%emt 00:00:06] [%clk 00:03:06]} 12. Ne5 {[%emt 00:00:03] [%clk 00:03:00]} Bb7
{[%emt 00:00:05] [%clk 00:03:03]} 13. Nc3 {[%emt 00:00:10] [%clk 00:02:52]} Qb6
{[%emt 00:00:10] [%clk 00:02:55]} 14. Qf4 {[%emt 00:00:17] [%clk 00:02:37]} O-O
{[%emt 00:00:44] [%clk 00:02:13]} 15. Nd7 {[%emt 00:00:03] [%clk 00:02:35]} Nxd7
{[%emt 00:00:03] [%clk 00:02:12]} 16. Qxd6 {[%emt 00:00:01] [%clk 00:02:36]}
Rfd8 {[%emt 00:00:20] [%clk 00:01:54]} 17. axb5 {[%emt 00:00:02] [%clk
00:02:37]} Rac8 {[%emt 00:00:29] [%clk 00:01:26]} 18. Rfc1 {[%emt 00:00:44]
[%clk 00:01:55]} Ba8 {[%emt 00:00:02] [%clk 00:01:27]} 19. bxc6 {[%emt 00:00:01]
[%clk 00:01:56]} Bxc6 {[%emt 00:00:02] [%clk 00:01:28]} 20. Bxc6 {[%emt
00:00:12] [%clk 00:01:46]} Rxc6 {[%emt 00:00:04] [%clk 00:01:26]} 21. Qa3 {[%clk
00:01:47]} Nf8 {[%emt 00:00:18] [%clk 00:01:09]} 22. e3 {[%emt 00:00:08] [%clk
00:01:41]} Rb8 {[%emt 00:00:04] [%clk 00:01:07]} 23. Na4 {[%emt 00:00:07] [%clk
00:01:36]} Qb4 {[%emt 00:00:03] [%clk 00:01:07]} 24. Nc5 {[%emt 00:00:01] [%clk
00:01:37]} e5 {[%emt 00:00:15] [%clk 00:00:54]} 25. Qxa5 {[%emt 00:00:16] [%clk
00:01:23]} exd4 {[%emt 00:00:10] [%clk 00:00:45]} 26. exd4 {[%emt 00:00:13]
[%clk 00:01:12]} Qxa5 {[%emt 00:00:13] [%clk 00:00:35]} 27. Rxa5 {[%clk
00:01:13]} Rxb2 {[%emt 00:00:02] [%clk 00:00:35]} 28. Rxc4 {[%emt 00:00:01]
[%clk 00:01:14]} Rc8 {[%emt 00:00:09] [%clk 00:00:28]} 29. Ra7 {[%emt 00:00:05]
[%clk 00:01:11]} Rd2 {[%emt 00:00:03] [%clk 00:00:27]} 30. Raa4 {[%emt 00:00:10]
[%clk 00:01:03]} g6 {[%emt 00:00:05] [%clk 00:00:25]} 31. Ne4 {[%emt 00:00:01]
[%clk 00:01:04]} Rd1+ {[%emt 00:00:01] [%clk 00:00:25]} 32. Kg2 {[%emt 00:00:01]
[%clk 00:01:05]} Rd8 {[%emt 00:00:01] [%clk 00:00:26]} 33. Nc5 {[%emt 00:00:25]
[%clk 00:00:42]} Rd2 {[%emt 00:00:01] [%clk 00:00:26]} 34. Nb3 {[%emt 00:00:02]
[%clk 00:00:43]} Rd3 {[%emt 00:00:01] [%clk 00:00:26]} 35. Na5 {[%emt 00:00:04]
[%clk 00:00:41]} Ne6 {[%emt 00:00:03] [%clk 00:00:25]} 36. Nc6 {[%emt 00:00:01]
[%clk 00:00:42]} Rd6 {[%clk 00:00:25]} 37. Ra8+ {[%emt 00:00:12] [%clk
00:00:32]} Kg7 {[%emt 00:00:01] [%clk 00:00:26]} 38. Ra7 {[%clk 00:00:34]} Rd2
{[%emt 00:00:15] [%clk 00:00:12]} 39. Ne5 {[%emt 00:00:03] [%clk 00:00:32]} Nd8
{[%emt 00:00:02] [%clk 00:00:12]} 40. Rcc7 {[%emt 00:00:23] [%clk 00:00:12]}
R6xd4 {[%emt 00:00:07] [%clk 00:00:08]} 41. Nxf7 {[%emt 00:00:01] [%clk
00:00:13]} Ne6 {[%emt 00:00:04] [%clk 00:00:05]} 42. Re7 {[%clk 00:00:14]} Kf6
{[%emt 00:00:01] [%clk 00:00:06]} 43. Nh8 {[%emt 00:00:08] [%clk 00:00:07]} Ng5
{[%emt 00:00:02] [%clk 00:00:07]} 44. h4 {[%emt 00:00:02] [%clk 00:00:07]} Ne4
{[%emt 00:00:01] [%clk 00:00:07]} 45. Rf7+ {[%emt 00:00:02] [%clk 00:00:08]} Ke5
{[%clk 00:00:08]} 46. Rae7+ {[%emt 00:00:01] [%clk 00:00:09]} Kd5 {[%emt
00:00:02] [%clk 00:00:08]} 47. Rd7+ {[%emt 00:00:01] [%clk 00:00:09]} Kc4 {[%clk
00:00:09]} 48. Rxd4+ {[%emt 00:00:01] [%clk 00:00:10]} Kxd4 {[%emt 00:00:01]
[%clk 00:00:10]} 49. Rf4 {[%emt 00:00:02] [%clk 00:00:09]} Kd5 {[%emt 00:00:04]
[%clk 00:00:09]} 50. Nf7 {[%clk 00:00:10]} Nc3 {[%emt 00:00:04] [%clk 00:00:06]}
51. Ng5 {[%emt 00:00:01] [%clk 00:00:11]} h6 {[%emt 00:00:01] [%clk 00:00:08]}
52. Nh3 {[%emt 00:00:03] [%clk 00:00:10]} Nd1 {[%emt 00:00:03] [%clk 00:00:07]}
53. Rf6 {[%emt 00:00:01] [%clk 00:00:10]} Ne3+ {[%emt 00:00:03] [%clk 00:00:06]}
54. Kf3 {[%clk 00:00:12]} Nf5 {[%emt 00:00:03] [%clk 00:00:05]} 55. Rxg6 {[%emt
00:00:02] [%clk 00:00:12]} Nd4+ {[%emt 00:00:01] [%clk 00:00:05]} 56. Kg2 {[%clk
00:00:14]} Ke4 {[%clk 00:00:07]} 57. Rxh6 {[%emt 00:00:02] [%clk 00:00:14]} Nf5
{[%clk 00:00:08]} 58. Re6+ {[%emt 00:00:02] [%clk 00:00:14]} Kd5 {[%clk
00:00:09]} 59. Rf6 {[%emt 00:00:02] [%clk 00:00:14]} Ke5 {[%clk 00:00:11]} 60.
Rf8 {[%clk 00:00:15]} Nd6 {[%emt 00:00:02] [%clk 00:00:12]} 61. h5 {[%emt
00:00:02] [%clk 00:00:14]} Ne4 {[%emt 00:00:02] [%clk 00:00:12]} 62. h6 {[%emt
00:00:01] [%clk 00:00:15]} Rd6 {[%emt 00:00:01] [%clk 00:00:12]} 63. h7 {[%emt
00:00:02] [%clk 00:00:14]} 1-0

[Site "Europe Echecs"]